fUST/lending_fUST_20250429
["ID","MTS","AMOUNT","RATE_DAILY","PERIOD"]
[359312647,1745911838224,-208.79583699,0.00037259,7]
[359312648,1745911838235,-291.20416301,0.00037259,7]
[359312649,1745911838244,-716.8665811,0.00037259,2]
[359312650,1745911838254,-501.9006288,0.00037259,7]
[359312651,1745911838263,-445.14398795,0.00037259,2]
[359312976,1745911843393,-345.51084991,0.00021693,2]
[359312992,1745911844044,-654.48915009,0.00021693,2]
[359312993,1745911844054,-271.72259315,0.00037259,2]
[359312994,1745911844064,-474.49925971,0.00037259,2]
[359312995,1745911844076,-242.36732139,0.00037259,2]
[359312996,1745911844086,-716.8665811,0.00037259,2]
[359312997,1745911844095,-716.8665811,0.00037259,2]
[359312998,1745911844105,-716.8665811,0.00037259,2]
[359312999,1745911844115,-716.8665811,0.00037259,2]
[359313000,1745911844125,-716.8665811,0.00037259,2]
[359313001,1745911844135,-716.8665811,0.00037259,2]
[359313002,1745911844144,-716.8665811,0.00037259,2]
[359313003,1745911844154,-716.8665811,0.00037259,2]
[359313004,1745911844165,-716.8665811,0.00037259,2]
[359313005,1745911844175,-716.8665811,0.00037259,2]
[359313006,1745911844185,-716.8665811,0.00037259,2]
[359313008,1745911844195,-716.8665811,0.00037259,2]
[359313009,1745911844205,-716.8665811,0.00037259,2]
[359313010,1745911844215,-716.8665811,0.00037259,2]
[359313011,1745911844225,-716.8665811,0.00037259,2]
[359313012,1745911844235,-716.8665811,0.00037259,2]
[359313013,1745911844245,-716.8665811,0.00037259,2]
[359313014,1745911844255,-716.8665811,0.00037259,2]
[359313015,1745911844265,-716.8665811,0.00037259,2]
[359313016,1745911844275,-716.8665811,0.00037259,2]
[359313017,1745911844285,-716.8665811,0.00037259,2]
[359313018,1745911844294,-716.8665811,0.00037259,2]
[359313019,1745911844304,-716.8665811,0.00037259,2]
[359313020,1745911844313,-332.06576453,0.00037259,2]
[359313022,1745911846284,-384.80081657,0.00037259,2]
[359313023,1745911846294,-716.8665811,0.00037259,2]
[359313024,1745911846303,-716.8665811,0.00037259,2]
[359313025,1745911846314,-716.8665811,0.00037259,2]
[359313026,1745911846323,-716.8665811,0.00037259,2]
[359313027,1745911846334,-716.8665811,0.00037259,2]
[359313028,1745911846343,-716.8665811,0.00037259,2]
[359313029,1745911846353,-716.8665811,0.00037259,2]
[359313030,1745911846363,-223.35168773,0.00037259,2]
[359313031,1745911846497,-493.51489337,0.00037259,2]
[359313033,1745911846507,-681.69954126,0.00037259,2]
[359313035,1745911846519,-681.69954126,0.00037259,2]
[359313036,1745911846529,-681.69954126,0.00037259,2]
[359313037,1745911846539,-808.19925782,0.00037479,5]
[359313038,1745911846551,-5724.72603181,0.00037479,5]
[359313047,1745911921523,151.0,0.00027397,30]
[359313124,1745913032377,-1000.0,0.00021592,2]
[359313125,1745913032387,-250.0,0.00021692,2]
[359313126,1745913032399,-200.0,0.00024855,2]
[359313127,1745913032409,-200.0,0.00024877,2]
[359313128,1745913032419,-200.0,0.00024883,2]
[359313129,1745913032430,-200.0,0.00024887,2]
[359313130,1745913032442,-200.0,0.00024889,2]
[359313131,1745913032452,-200.0,0.00024893,2]
[359313132,1745913032466,-500.0,0.00026575,2]
[359313133,1745913032476,-201.553171,0.00027397,2]
[359313134,1745913032488,-369.33,0.000281,2]
[359313135,1745913032498,-318.705219,0.00028902,2]
[359313136,1745913032508,-1356.6962605,0.00029798,2]
[359313137,1745913032518,-3762.44468881,0.00030137,2]
[359313138,1745913032531,-6237.55531119,0.00030137,2]
[359313139,1745913032540,-201.553171,0.00033165,2]
[359313140,1745913032550,-4090.2712709,0.0003729,3]
[359313141,1745913032560,-500.0,0.00037299,2]
[359313142,1745913032570,-591.26014823,0.00037299,2]
[359313143,1745913032580,-591.26014823,0.00037299,2]
[359313144,1745913032853,-591.26014823,0.00037299,2]
[359313145,1745913032864,-591.26014823,0.00037299,2]
[359313146,1745913032873,-287.41258898,0.00037299,2]
[359313148,1745913038397,-303.84755925,0.00037299,2]
[359313149,1745913038408,-591.26014823,0.00037299,2]
[359313150,1745913038417,-591.26014823,0.00037299,2]
[359313151,1745913038427,-591.26014823,0.00037299,2]
[359313152,1745913038436,-591.26014823,0.00037299,2]
[359313153,1745913038446,-591.26014823,0.00037299,2]
[359313154,1745913038455,-591.26014823,0.00037299,2]
[359313155,1745913038465,-591.26014823,0.00037299,2]
[359313156,1745913038475,-591.26014823,0.00037299,2]
[359313157,1745913038485,-591.26014823,0.00037299,2]
[359313158,1745913038495,-591.26014823,0.00037299,2]
[359313159,1745913038504,-591.26014823,0.00037299,2]
[359313160,1745913038514,-591.26014823,0.00037299,2]
[359313161,1745913038524,-591.26014823,0.00037299,2]
[359313162,1745913038534,-591.26014823,0.00037299,2]
[359313163,1745913038543,-591.26014823,0.00037299,2]
[359313164,1745913038552,-591.26014823,0.00037299,2]
[359313165,1745913038562,-591.26014823,0.00037299,2]
[359313166,1745913038571,-591.26014823,0.00037299,2]
[359313167,1745913038581,-591.26014823,0.00037299,2]
[359313168,1745913038590,-591.26014823,0.00037299,2]
[359313169,1745913038599,-591.26014823,0.00037299,2]
[359313170,1745913038608,-591.26014823,0.00037299,2]
[359313171,1745913038618,-591.26014823,0.00037299,2]
[359313172,1745913038627,-591.26014823,0.00037299,2]
[359313173,1745913038636,-591.26014823,0.00037299,2]
[359313174,1745913038646,-591.26014823,0.00037299,2]
[359313175,1745913038655,-591.26014823,0.00037299,2]
[359313176,1745913038664,-591.26014823,0.00037299,2]
[359313177,1745913038673,-591.26014823,0.00037299,2]
[359313178,1745913038683,-591.26014823,0.00037299,2]
[359313179,1745913038692,-591.26014823,0.00037299,2]
[359313180,1745913038701,-591.26014823,0.00037299,2]
[359313181,1745913038710,-591.26014823,0.00037299,2]
[359313182,1745913038719,-591.26014823,0.00037299,2]
[359313183,1745913038728,-235.70373255,0.00037299,2]
[359313184,1745913038741,-355.55641568,0.00037299,2]
[359313185,1745913038750,-591.26014823,0.00037299,2]
[359313186,1745913038759,-591.26014823,0.00037299,2]
[359313187,1745913038768,-591.26014823,0.00037299,2]
[359313188,1745913038778,-591.26014823,0.00037299,2]
[359313189,1745913038787,-591.26014823,0.00037299,2]
[359313190,1745913038796,-591.26014823,0.00037299,2]
[359313191,1745913038805,-591.26014823,0.00037299,2]
[359313192,1745913038816,-591.26014823,0.00037299,2]
[359313193,1745913038826,-591.26014823,0.00037299,2]
[359313194,1745913038838,-591.26014823,0.00037299,2]
[359313195,1745913038848,-591.26014823,0.00037299,2]
[359313196,1745913038859,-591.26014823,0.00037299,2]
[359313197,1745913038870,-591.26014823,0.00037299,2]
[359313198,1745913038880,-591.26014823,0.00037299,2]
[359313199,1745913038890,-591.26014823,0.00037299,2]
[359313200,1745913038899,-129.66076086,0.00037299,2]
[359313201,1745913038920,-461.59938737,0.00037299,2]
[359313202,1745913038929,-591.26014823,0.00037299,2]
[359313203,1745913038939,-591.26014823,0.00037299,2]
[359313204,1745913038949,-591.26014823,0.00037299,2]
[359313205,1745913038959,-526.67464509,0.00037299,2]
[359313206,1745913038974,-64.58550314,0.00037299,2]
[359313207,1745913038984,-591.26014823,0.00037299,2]
[359313208,1745913038993,-571.55147662,0.00037299,2]
[359313209,1745913039003,-571.55147662,0.00037299,2]
[359313210,1745913039012,-571.55147662,0.00037299,2]
[359313211,1745913039022,-571.55147662,0.00037299,2]
[359313212,1745913039033,-571.55147662,0.00037299,2]
[359313213,1745913039043,-571.55147662,0.00037299,2]
[359313214,1745913039055,-571.55147662,0.00037299,2]
[359313215,1745913039065,-571.55147662,0.00037299,2]
[359313216,1745913039074,-571.55147662,0.00037299,2]
[359313217,1745913039084,-571.55147662,0.00037299,2]
[359313218,1745913039094,-571.55147662,0.00037299,2]
[359313219,1745913039104,-571.55147662,0.00037299,2]
[359313220,1745913039114,-571.55147662,0.00037299,2]
[359313221,1745913039125,-571.55147662,0.00037299,2]
[359313222,1745913039135,-571.55147662,0.00037299,2]
[359313223,1745913039145,-571.55147662,0.00037299,2]
[359313224,1745913039154,-571.55147662,0.00037299,2]
[359313225,1745913039164,-571.55147662,0.00037299,2]
[359313226,1745913039173,-571.55147662,0.00037299,2]
[359313227,1745913039183,-571.55147662,0.00037299,2]
[359313228,1745913039192,-571.55147662,0.00037299,2]
[359313229,1745913039204,-571.55147662,0.00037299,2]
[359313230,1745913039214,-571.55147662,0.00037299,2]
[359313231,1745913039223,-628.70662425,0.00037299,2]
[359313232,1745913039234,-628.70662425,0.00037299,2]
[359313233,1745913039243,-628.70662425,0.00037299,2]
[359313234,1745913039253,-628.70662425,0.00037299,2]
[359313235,1745913039263,-11701.88537319,0.000373,2]
[359313281,1745913040727,-1430.80000004,0.000373,2]
[359313287,1745913040778,-30889.83041529,0.000373,2]
[359313569,1745913043602,-250.0,0.00021492,2]
[359313572,1745913043612,-61542.02421148,0.000373,2]
[359313574,1745913043622,-1041.97068856,0.00037378,2]
[359313576,1745913043631,-353.4015556,0.00037399,30]
[359313579,1745913043640,-1133.3010594,0.00037399,30]
[359313581,1745913043651,-8180.5425418,0.00037469,3]
[359313583,1745913043660,-158.451,0.00037469,48]
[359313585,1745913043669,-239.88740216,0.00037478,7]
[359313587,1745913043678,-500.0,0.00037478,15]
[359313589,1745913043688,-261.3281056,0.00037478,15]
[359313591,1745913043697,-466.6051016,0.00037478,7]
[359313593,1745913043706,-348.98172151,0.00037478,15]
[359313595,1745913043715,-167.92118151,0.00037478,7]
[359313597,1745913043724,-1786.89379412,0.00037479,2]
[359313599,1745913043733,-17251.63949523,0.00037479,5]
[359313745,1745913046438,-403.0,0.00033792,2]
[359313747,1745913046449,-6051.73178504,0.00037479,5]
[359313750,1745913046461,-509.68804696,0.00037479,5]
[359313765,1745913046607,-1925.6359819,0.00037479,5]
[359313808,1745913675447,-299.98509982,0.00021492,2]
[359313809,1745913684758,-160.0,0.00021492,2]
[359313828,1745914232554,-540.01490018,0.00021492,2]
[359313829,1745914232564,-250.0,0.00021492,2]
[359313830,1745914232574,-800.0,0.00023,7]
[359313831,1745914232584,-500.0,0.00025,3]
[359313832,1745914232593,-159.35261,0.00026126,2]
[359313833,1745914232603,-160.0,0.00026554,2]
[359313834,1745914232613,-160.0,0.00026554,2]
[359313836,1745914232622,-500.0,0.00026575,2]
[359313837,1745914232631,-181.397853,0.00027397,2]
[359313839,1745914232641,-215.08334687,0.000279,7]
[359313840,1745914232651,-300.0,0.00028097,2]
[359313841,1745914232660,-300.0,0.00028098,2]
[359313843,1745914232670,-300.0,0.00028098,2]
[359313844,1745914232679,-1200.0,0.00028098,2]
[359313845,1745914232689,-11070.54154207,0.00028099,2]
[359313846,1745914232700,-19228.53767294,0.00028099,2]
[359313847,1745914232711,-2462.9131946,0.00028099,2]
[359313848,1745914232722,-389.81896244,0.00028099,2]
[359313849,1745914232734,-16848.18862795,0.00028099,2]
[359313850,1745914232744,-332.4,0.000281,2]
[359313851,1745914232754,-500.0,0.000291,5]
[359313852,1745914232763,-544.53635649,0.000291,5]
[359313853,1745914232773,-260.0,0.00030342,2]
[359313854,1745914232783,-420.0,0.00030343,2]
[359313855,1745914232793,-541.0,0.00030475,2]
[359313856,1745914232803,-869.3485347,0.00030596,2]
[359313857,1745914232817,-185.7237268,0.00031983,2]
[359313858,1745914232826,-180.0,0.00032767,2]
[359313859,1745914232836,-181.397853,0.00033165,2]
[359313860,1745914232845,-185.7237268,0.00033477,2]
[359313861,1745914232855,-215.08334685,0.000339,11]
[359313862,1745914232864,-1000.0,0.00034579,5]
[359313863,1745914232873,-185.7237268,0.00034971,2]
[359313864,1745914232883,-185.7237268,0.00036465,2]
[359313865,1745914232895,-892.2495287,0.00036952,2]
[359313866,1745914232904,-152.02,0.00037,7]
[359313867,1745914232913,-307.87467178,0.00037007,2]
[359313868,1745914232922,-158.451,0.00037067,47]
[359313869,1745914232932,-1431.59494482,0.00037189,3]
[359313870,1745914232941,-580.38861772,0.00037198,15]
[359313871,1745914232950,-500.0,0.00037198,15]
[359313872,1745914232960,-500.0,0.00037198,15]
[359313873,1745914232969,-500.0,0.00037198,15]
[359313874,1745914232979,-500.0,0.00037198,2]
[359313875,1745914232988,-500.0,0.00037198,15]
[359313876,1745914232997,-500.0,0.00037198,2]
[359313877,1745914233007,-481.80055333,0.00037198,15]
[359313878,1745914233017,-500.0,0.00037198,2]
[359313879,1745914233027,-500.0,0.00037198,2]
[359313880,1745914233037,-500.0,0.00037198,2]
[359313881,1745914233047,-500.0,0.00037198,2]
[359313882,1745914233056,-500.0,0.00037198,2]
[359313883,1745914233066,-500.0,0.00037198,2]
[359313884,1745914233076,-500.0,0.00037198,2]
[359313885,1745914233086,-500.0,0.00037198,2]
[359313886,1745914233096,-626.18651732,0.00037198,2]
[359313887,1745914233106,-500.0,0.00037198,2]
[359313888,1745914233116,-500.0,0.00037198,2]
[359313889,1745914233126,-500.0,0.00037198,2]
[359313890,1745914233135,-500.0,0.00037198,2]
[359313891,1745914233146,-500.0,0.00037198,2]
[359313892,1745914233157,-500.0,0.00037198,2]
[359313893,1745914233167,-34662.7942309,0.00037199,2]
[359313894,1745914233179,-6036.69865106,0.00037199,2]
[359313895,1745914233189,-833.57655084,0.00037379,2]
[359313896,1745914233422,-246.65,0.000374,2]
[359313897,1745914233432,-4294.78483446,0.00037469,3]
[359313898,1745914233442,-9542.14085914,0.00037479,5]
[359313899,1745914233479,-674.93676935,0.00037479,5]
[359313934,1745914238675,-17980.93034034,0.00037479,5]
[359314054,1745914240978,-14437.69325872,0.00037479,5]
[359314440,1745914244840,-691.15,0.00037479,5]
[359314449,1745914244913,-872.23335984,0.00037479,5]
[359314451,1745914244925,-21775.29055602,0.00037479,5]
[359314453,1745914244937,-6386.04449922,0.00037479,5]
[359314552,1745914246521,-1745.28953661,0.00037479,5]
[359314553,1745914246677,-324.65567513,0.00037479,5]
[359314555,1745914246689,-2170.239256,0.00037479,5]
[359314556,1745914246701,-6094.27683794,0.00037479,5]
[359314557,1745914246712,-331.266836,0.00037479,5]
[359314558,1745914246723,-19096.58305143,0.00037479,5]
[359314559,1745914246735,-500.0,0.00037479,5]
[359314573,1745914288767,-160.0,0.00021392,2]
[359314574,1745914293168,-90.0,0.00021392,2]
[359314579,1745914438657,730.81,0.00023,120]
[359314598,1745915321249,83930.032915,0.00026,30]
[359314599,1745915321581,-164.87790339,0.0002,7]
[359314600,1745915325583,-63.43309661,0.0002,7]
[359314656,1745915432706,-941.19646739,0.00025487,2]
[359314658,1745915432716,-160.0,0.00027252,2]
[359314660,1745915432726,-2629.31115957,0.00027297,2]
[359314662,1745915432737,-163.258067,0.00027397,2]
[359314664,1745915432747,-250.0,0.00029,2]
[359314666,1745915432757,-604.5,0.000291,2]
[359314668,1745915432766,-179.9820018,0.00030782,6]
[359314670,1745915432776,-558.8219314,0.00032267,2]
[359314672,1745915432785,-300.0,0.00032611,3]
[359314674,1745915432794,-400.0,0.00032611,2]
[359314676,1745915432804,-482.6279946,0.00032612,2]
[359314678,1745915432813,-1610.14866339,0.00032612,2]
[359314681,1745915432822,-159.3526104,0.00032836,2]
[359314684,1745915432832,-163.258067,0.00033165,2]
[359314686,1745915432842,-177.64999262,0.000349,2]
[359314688,1745915432852,-94370.07935821,0.00034998,2]
[359314690,1745915432862,-200.68362676,0.00035,2]
[359314692,1745915432871,-16179.99950091,0.00035,2]
[359314694,1745915432881,-706.0,0.00035035,2]
[359314696,1745915432890,-2264.421,0.00035035,2]
[359314698,1745915432899,-546.803,0.00035035,2]
[359314700,1745915432909,-157.47,0.00035035,2]
[359314702,1745915432918,-487.0,0.00035053,2]
[359314703,1745915432928,-177.6499926,0.00036135,2]
[359314704,1745915432937,-461.77932814,0.00037034,2]
[359314705,1745915432946,-238.38019205,0.00037035,2]
[359314706,1745915432956,-318.05006284,0.00037069,2]
[359314707,1745915432966,-1370.2912063,0.0003719,8]
[359314708,1745915432975,-480.96439082,0.00037221,2]
[359314709,1745915432985,-1181.31,0.0003729,3]
[359314710,1745915432994,-590.65,0.0003729,3]
[359314711,1745915433003,-295.33,0.0003729,3]
[359314712,1745915433013,-886.01,0.0003729,3]
[359314713,1745915433022,-164.663,0.00037299,48]
[359314715,1745915433032,-33439.0,0.000373,7]
[359314717,1745915433041,-422.46433724,0.00037369,3]
[359314718,1745915433051,-9162.2076468,0.00037369,3]
[359314719,1745915433061,-177.6499926,0.00037369,2]
[359314720,1745915433071,-262.0412427,0.00037373,5]
[359314721,1745915433081,-500.0,0.00037373,2]
[359314722,1745915433090,-502.42699283,0.00037373,5]
[359314723,1745915433101,-500.0,0.00037373,5]
[359314724,1745915433111,-500.0,0.00037373,2]
[359314725,1745915433121,-500.0,0.00037373,5]
[359314726,1745915433131,-300.0,0.00037373,5]
[359314727,1745915433140,-500.0,0.00037373,5]
[359314728,1745915433150,-500.0,0.00037373,5]
[359314729,1745915433159,-500.0,0.00037373,5]
[359314730,1745915433170,-500.0,0.00037373,5]
[359314731,1745915433179,-256.32204922,0.00037373,5]
[359314732,1745915433190,-500.0,0.00037373,5]
[359314733,1745915433199,-502.46837318,0.00037373,5]
[359314734,1745915433209,-429.84045689,0.00037373,5]
[359314735,1745915433219,-500.0,0.00037373,2]
[359314736,1745915433228,-347.58284585,0.00037378,15]
[359314737,1745915433239,-500.0,0.00037378,2]
[359314738,1745915433248,-500.0,0.00037378,2]
[359314739,1745915433259,-500.0,0.00037378,2]
[359314740,1745915433268,-500.0,0.00037378,2]
[359314741,1745915433279,-500.0,0.00037378,2]
[359314742,1745915433289,-470.95879294,0.00037378,2]
[359314743,1745915433298,-5879.67269383,0.00037379,2]
[359314744,1745915433308,-347955.1360776,0.00037379,2]
[359314747,1745915438686,-220.1755977,0.000289,8]
[359314748,1745915438696,-220.17559767,0.0003165,10]
[359314749,1745915438705,-220.17559767,0.000344,11]
[359314750,1745915438714,-220.17559767,0.0003715,13]
[359314751,1745915438723,-232.65931896,0.00037378,7]
[359314752,1745915438732,-579.51814627,0.00037378,7]
[359314753,1745915438742,-500.0,0.00037378,15]
[359314754,1745915438751,-409.91997926,0.00037378,15]
[359314755,1745915438760,-230.34518548,0.00037378,15]
[359314756,1745915438770,-500.0,0.00037378,15]
[359314757,1745915438779,-7017.62201844,0.00037379,2]
[359314759,1745915438803,-15027.24190396,0.00037379,2]
[359314760,1745915438812,-1145.27595585,0.00037469,3]
[359314762,1745915438821,-20000.0,0.0003747,2]
[359314765,1745915438830,-500.0,0.00037478,5]
[359314766,1745915438840,-500.0,0.00037478,5]
[359314767,1745915438850,-500.0,0.00037478,5]
[359314768,1745915438859,-151.0,0.00037478,5]
[359314769,1745915438869,-500.0,0.00037478,5]
[359314770,1745915438879,-151.0,0.00037478,5]
[359314771,1745915438888,-151.0,0.00037478,5]
[359314772,1745915438898,-500.0,0.00037478,5]
[359314773,1745915438907,-151.0,0.00037478,5]
[359314774,1745915438917,-151.0,0.00037478,5]
[359314775,1745915438926,-151.0,0.00037478,5]
[359314776,1745915438935,-151.0,0.00037478,5]
[359314777,1745915438945,-159.09815816,0.00037478,5]
[359314778,1745915438955,-151.0,0.00037478,5]
[359314779,1745915438964,-153.27633207,0.00037478,5]
[359314780,1745915438974,-207.4,0.00037478,5]
[359314781,1745915438983,-215.0738,0.00037478,5]
[359314782,1745915438992,-223.0315306,0.00037478,5]
[359314783,1745915439002,-256.05109126,0.00037478,5]
[359314784,1745915439011,-500.0,0.00037478,5]
[359314785,1745915439021,-151.0,0.00037478,5]
[359314786,1745915439030,-151.0,0.00037478,2]
[359314787,1745915439040,-152.09625601,0.00037478,5]
[359314788,1745915439049,-500.0,0.00037478,5]
[359314789,1745915439058,-500.0,0.00037478,5]
[359314790,1745915439068,-151.0,0.00037478,2]
[359314791,1745915439077,-500.0,0.00037478,5]
[359314792,1745915439087,-500.0,0.00037478,5]
[359314793,1745915439096,-34415.02720693,0.00037479,5]
[359314794,1745915439106,-159.0,0.00037479,14]
[359314795,1745915439116,-159.0,0.00037479,14]
[359314796,1745915439126,-279.37554317,0.00037479,14]
[359314797,1745915439135,-258.63188799,0.00037479,14]
[359314798,1745915439144,-500.0,0.00037479,14]
[359314799,1745915439153,-500.0,0.00037479,14]
[359314800,1745915439163,-291.265092,0.00037479,4]
[359314801,1745915439172,-151.0,0.00037479,14]
[359314802,1745915439181,-500.0,0.00037505,5]
[359314803,1745915439191,-500.0,0.00037505,5]
[359314804,1745915439200,-608.33158567,0.00037505,5]
[359314805,1745915439209,-151.0,0.00037505,5]
[359314806,1745915439218,-500.0,0.00037505,5]
[359314807,1745915439227,-151.0,0.00037505,5]
[359314808,1745915439236,-151.49692342,0.00037505,5]
[359314809,1745915439245,-500.0,0.00037505,5]
[359314810,1745915439255,-151.0,0.00037505,5]
[359314811,1745915439264,-151.30199585,0.00037505,5]
[359314812,1745915439274,-151.94302712,0.00037505,5]
[359314813,1745915439283,-151.0,0.00037505,5]
[359314814,1745915439292,-504.14552931,0.00037505,5]
[359314815,1745915439302,-151.0,0.00037505,5]
[359314816,1745915439311,-500.0,0.00037505,5]
[359314817,1745915439321,-500.0,0.00037505,5]
[359314818,1745915439331,-500.0,0.00037505,5]
[359314819,1745915439340,-500.0,0.00037505,5]
[359314820,1745915439349,-570.62909354,0.00037533,5]
[359314821,1745915439359,-500.0,0.00037533,5]
[359314822,1745915439369,-151.0,0.00037533,5]
[359314823,1745915439378,-500.0,0.00037533,5]
[359314824,1745915439388,-424.17734919,0.00037533,5]
[359314825,1745915439397,-151.0,0.00037533,5]
[359314826,1745915439407,-151.0,0.00037533,5]
[359314827,1745915439416,-154.6913844,0.00037533,5]
[359314828,1745915439426,-500.0,0.00037533,5]
[359314829,1745915439436,-500.0,0.00037533,5]
[359314830,1745915439449,-500.0,0.00037533,5]
[359314831,1745915439459,-500.0,0.00037533,5]
[359314832,1745915439469,-480.96439079,0.00037553,2]
[359314833,1745915439478,-500.0,0.0003756,5]
[359314834,1745915439489,-151.0,0.0003756,5]
[359314835,1745915439499,-500.0,0.0003756,5]
[359314836,1745915439508,-151.0,0.0003756,5]
[359314837,1745915439518,-153.59836869,0.0003756,5]
[359314838,1745915439527,-500.0,0.0003756,5]
[359314839,1745915439537,-500.0,0.0003756,5]
[359314840,1745915439547,-500.0,0.0003756,5]
[359314841,1745915439557,-420.02053145,0.0003756,5]
[359314842,1745915439567,-506.65859744,0.00037588,5]
[359314843,1745915439576,-173.22662072,0.00037588,5]
[359314844,1745915439587,-504.02764466,0.00037588,5]
[359314845,1745915439599,-153.11047344,0.00037588,5]
[359314846,1745915439617,-507.80322287,0.00037588,5]
[359314847,1745915439633,-455.99700118,0.00037588,5]
[359314848,1745915439648,-505.57387268,0.00037588,5]
[359314849,1745915439660,-634.0,0.000378,2]
[359314850,1745915439672,-480.96439079,0.00037885,2]
[359314851,1745915439687,-2198.29879,0.00037999,4]
[359314852,1745915439701,-146414.93983128,0.00038,30]
[359314853,1745915439715,-238.039477,0.00038,14]
[359314854,1745915439729,-480.96439079,0.00038217,2]
[359314855,1745915439743,-200.0,0.00038282,120]
[359314856,1745915439760,-151.0,0.000383,13]
[359314857,1745915439774,-151.0,0.000383,11]
[359314858,1745915439787,-528.08042155,0.00038346,3]
[359314859,1745915439800,-12598.0355144,0.00038346,3]
[359314860,1745915439813,-151.0,0.00038356,14]
[359314861,1745915439828,-151.0,0.00038356,14]
[359314862,1745915439842,-151.0,0.00038356,14]
[359314863,1745915439854,-151.0,0.00038356,14]
[359314864,1745915439866,-151.0,0.00038356,14]
[359314865,1745915439879,-177.086735,0.00038356,14]
[359314866,1745915439893,-151.0,0.00038356,14]
[359314867,1745915439907,-151.376095,0.00038356,14]
[359314868,1745915439919,-151.0,0.00038356,14]
[359314869,1745915439934,-151.0,0.00038356,14]
[359314870,1745915439950,-151.0,0.00038356,14]
[359314871,1745915439964,-151.0,0.00038356,14]
[359314872,1745915439977,-151.0,0.00038356,14]
[359314873,1745915439987,-151.0,0.00038356,14]
[359314874,1745915440000,-151.0,0.00038356,14]
[359314875,1745915440013,-151.0,0.00038356,14]
[359314876,1745915440029,-151.0,0.00038356,14]
[359314877,1745915440043,-151.0,0.00038356,14]
[359314878,1745915440055,-151.0,0.00038356,14]
[359314879,1745915440067,-151.0,0.00038356,14]
[359314880,1745915440080,-151.0,0.00038356,14]
[359314881,1745915440093,-151.0,0.00038356,14]
[359314882,1745915440106,-151.0,0.00038356,14]
[359314883,1745915440117,-151.0,0.00038356,14]
[359314884,1745915440128,-151.0,0.00038356,14]
[359314885,1745915440139,-151.0,0.00038356,14]
[359314886,1745915440151,-151.0,0.00038356,14]
[359314887,1745915440166,-151.0,0.00038356,14]
[359314888,1745915440178,-151.0,0.00038356,14]
[359314889,1745915440190,-151.0,0.00038356,14]
[359314890,1745915440202,-151.0,0.00038356,14]
[359314892,1745915440215,-151.0,0.00038356,14]
[359314893,1745915440227,-151.0,0.00038356,14]
[359314894,1745915440241,-151.0,0.00038356,14]
[359314895,1745915440253,-151.0,0.00038356,14]
[359314896,1745915440265,-151.0,0.00038356,14]
[359314897,1745915440278,-152.549925,0.00038356,14]
[359314898,1745915440290,-156.993649,0.00038356,14]
[359314899,1745915440302,-151.0,0.00038356,14]
[359314900,1745915440314,-151.0,0.00038356,14]
[359314901,1745915440326,-151.0,0.00038356,14]
[359314902,1745915440339,-151.0,0.00038356,14]
[359314903,1745915440352,-191.254924,0.00038356,14]
[359314904,1745915440364,-151.0,0.00038356,14]
[359314905,1745915440377,-151.0,0.00038356,14]
[359314906,1745915440391,-500.0,0.00038356,3]
[359314907,1745915440404,-230.65955354,0.00038356,3]
[359314908,1745915440416,-217.08812041,0.00038356,3]
[359314909,1745915440428,-503.45080845,0.00038356,3]
[359314910,1745915440440,-400.0,0.00038356,3]
[359314911,1745915440456,-400.0,0.00038356,3]
[359314912,1745915440468,-151.0,0.00038356,14]
[359314913,1745915440480,-151.0,0.00038356,14]
[359314914,1745915440496,-151.0,0.00038356,14]
[359314915,1745915440511,-151.0,0.00038356,14]
[359314916,1745915440524,-151.0,0.00038356,14]